fUSD/lending_fUSD_20250510
["ID","MTS","AMOUNT","RATE_DAILY","PERIOD"]
[360533728,1746853067092,-4.60732244,0.000198,23]
[360533729,1746853067121,-67.82282283,0.00019897,2]
[360533730,1746853067148,-218.84202279,0.00019897,2]
[360533731,1746853068148,-81.15797721,0.00019897,2]
[360533732,1746853068175,-137.68404558,0.00019898,2]
[360533733,1746853081593,-168.69719059,0.00019898,2]
[360533734,1746853097098,-156.33623715,0.00019898,2]
[360533735,1746853098783,-156.33623715,0.00019898,2]
[360533736,1746853300780,1000.0,0.00019091,2]
[360533739,1746853399457,265.26,0.0001901,2]
[360533740,1746853721271,152.92,0.00019019,2]
[360533756,1746853831890,-207.4,0.00019886,2]
[360533757,1746853831900,-200.0,0.00019892,2]
[360533758,1746853831909,-1200.0,0.00019897,2]
[360533759,1746853831919,-300.0,0.00019897,2]
[360533760,1746853831928,-5596.22901673,0.00019898,2]
[360533761,1746853832000,-916.06829668,0.00019898,2]
[360533762,1746853832057,-3139.77787612,0.00019898,2]
[360533763,1746853832066,-3726.9244,0.00019898,2]
[360533764,1746853832075,-721.2264,0.00019898,2]
[360533765,1746853832084,-2500.0,0.00019898,2]
[360533766,1746853832094,-503.010314,0.00019899,2]
[360533767,1746853832103,-5052.05104106,0.00019899,2]
[360533768,1746853832113,-5052.051041,0.00019899,2]
[360533769,1746853832122,-5052.051041,0.00019899,2]
[360533770,1746853832131,-5052.051041,0.00019899,2]
[360533771,1746853832140,-5052.051041,0.00019899,2]
[360533772,1746853832150,-19.3288108,0.000199,2]
[360533773,1746853832162,-5032.7222302,0.000199,2]
[360533774,1746853832171,-5052.051041,0.000199,2]
[360533775,1746853832181,-896.35920504,0.000199,2]
[360533776,1746853832193,-4155.69183596,0.000199,2]
[360533777,1746853832202,-852.84629629,0.000199,2]
[360533778,1746853832213,-4050.0,0.000199,2]
[360533779,1746853832226,-149.20474471,0.000199,2]
[360533780,1746853832236,-3074.87487134,0.000199,2]
[360533781,1746853832253,-2332.92622709,0.000199,2]
[360533782,1746853832264,-205.95931158,0.000199,2]
[360533783,1746853832276,-391.693,0.000199,2]
[360533784,1746853832285,-879.85197213,0.000199,2]
[360533785,1746853832294,-817.19631143,0.000199,2]
[360533786,1746853832305,-5052.051041,0.000199,2]
[360533787,1746853832314,-1462.577335,0.000199,2]
[360533788,1746853832323,-500.0,0.00019973,2]
[360533789,1746853832333,-501.08946827,0.00019973,2]
[360533791,1746853832342,-406.54003262,0.00019973,2]
[360533793,1746853832353,-93.45996738,0.00019973,2]
[360533795,1746853832362,-500.0,0.00019973,2]
[360533797,1746853832372,-502.02433921,0.00019973,2]
[360533799,1746853832381,-500.0,0.00019973,2]
[360533801,1746853832390,-500.0,0.00019973,2]
[360533803,1746853832399,-366.32675302,0.00019973,2]
[360533804,1746853832408,-500.0,0.00019973,2]
[360533805,1746853832418,-500.0,0.00019973,2]
[360533806,1746853832427,-501.92231379,0.00019973,2]
[360533807,1746853832436,-817.9233575,0.0001999,2]
[360533808,1746853832446,-817.9233575,0.0001999,2]
[360533809,1746853832455,-500.4199115,0.0001999,2]
[360533810,1746853832467,-317.503446,0.0001999,2]
[360533811,1746853832477,-1234.7,0.00019995,2]
[360533812,1746853832487,-1703.8530869,0.00019996,2]
[360533813,1746853832497,-156.8299624,0.00019996,2]
[360533814,1746853832507,-1662.1604178,0.00019996,2]
[360533815,1746853832517,-259.9947027,0.00019996,2]
[360533816,1746853832526,-544.9583842,0.00019996,2]
[360533817,1746853832538,-3550.000005,0.00019996,2]
[360533818,1746853832549,-1300.0,0.00019996,2]
[360533819,1746853832560,-32070.7486121,0.00019996,2]
[360533820,1746853832569,-400.0,0.00019997,2]
[360533821,1746853832577,-450.0,0.00019997,2]
[360533822,1746853832586,-400.0,0.00019997,2]
[360533823,1746853832595,-450.0,0.00019997,2]
[360533824,1746853832604,-482.42660409,0.00019997,2]
[360533825,1746853832613,-527.82325398,0.00019997,2]
[360533826,1746853832622,-450.0,0.00019997,2]
[360533827,1746853832631,-450.0,0.00019997,2]
[360533828,1746853832640,-450.0,0.00019997,2]
[360533829,1746853832648,-400.0,0.00019997,2]
[360533830,1746853832658,-519.07808679,0.00019997,2]
[360533831,1746853832666,-512.36576443,0.00019997,2]
[360533832,1746853832675,-481.74326314,0.00019997,2]
[360533833,1746853832685,-450.0,0.00019997,2]
[360533834,1746853832694,-400.0,0.00019997,2]
[360533835,1746853832703,-400.0,0.00019997,2]
[360533836,1746853832713,-450.0,0.00019997,2]
[360533837,1746853832721,-400.0,0.00019997,2]
[360533838,1746853832731,-400.0,0.00019997,2]
[360533839,1746853832739,-400.0,0.00019997,2]
[360533840,1746853832748,-450.0,0.00019997,2]
[360533841,1746853832757,-450.0,0.00019997,2]
[360533842,1746853832765,-400.0,0.00019997,2]
[360533843,1746853832774,-509.55791175,0.00019997,2]
[360533844,1746853832783,-450.0,0.00019997,2]
[360533845,1746853832792,-495.77,0.00019997,2]
[360533846,1746853832803,-450.0,0.00019997,2]
[360533847,1746853832813,-400.0,0.00019997,2]
[360533848,1746853832822,-450.0,0.00019997,2]
[360533849,1746853832831,-450.0,0.00019997,2]
[360533850,1746853832843,-400.0,0.00019997,2]
[360533851,1746853832854,-450.0,0.00019997,2]
[360533852,1746853832863,-400.0,0.00019997,2]
[360533853,1746853832872,-433.61766064,0.00019997,2]
[360533854,1746853832882,-400.0,0.00019997,2]
[360533855,1746853832891,-467.91746732,0.00019997,2]
[360533856,1746853832900,-450.0,0.00019997,2]
[360533857,1746853832910,-400.0,0.00019997,2]
[360533858,1746853832919,-450.0,0.00019997,2]
[360533859,1746853832929,-400.0,0.00019997,2]
[360533860,1746853832938,-450.0,0.00019997,2]
[360533861,1746853832946,-400.0,0.00019997,2]
[360533862,1746853832955,-400.0,0.00019997,2]
[360533863,1746853832964,-400.0,0.00019997,2]
[360533864,1746853832973,-255.01631759,0.00019997,2]
[360533865,1746853832982,-450.0,0.00019997,2]
[360533866,1746853832991,-450.0,0.00019997,2]
[360533867,1746853832999,-110.62973769,0.00019997,2]
[360533868,1746853833011,-358.37713203,0.00019997,2]
[360533869,1746853833021,-450.0,0.00019997,2]
[360533870,1746853833030,-132.18039253,0.00019997,2]
[360533871,1746853833044,-267.81960747,0.00019997,2]
[360533872,1746853833053,-400.0,0.00019997,2]
[360533873,1746853833063,-499.92242367,0.00019997,2]
[360533874,1746853833072,-400.0,0.00019997,2]
[360533875,1746853833081,-450.0,0.00019997,2]
[360533876,1746853833091,-450.0,0.00019997,2]
[360533877,1746853833100,-467.42058235,0.00019997,2]
[360533878,1746853833110,-450.0,0.00019997,2]
[360533879,1746853833119,-450.0,0.00019997,2]
[360533880,1746853833128,-400.0,0.00019997,2]
[360533881,1746853833138,-400.0,0.00019997,2]
[360533882,1746853833148,-400.0,0.00019997,2]
[360533883,1746853833157,-400.0,0.00019997,2]
[360533884,1746853833167,-400.0,0.00019997,2]
[360533885,1746853833176,-400.0,0.00019997,2]
[360533886,1746853833186,-400.0,0.00019997,2]
[360533887,1746853833195,-400.0,0.00019997,2]
[360533888,1746853833205,-400.0,0.00019997,2]
[360533889,1746853833214,-400.0,0.00019997,2]
[360533890,1746853833223,-400.0,0.00019997,2]
[360533891,1746853833232,-450.0,0.00019997,2]
[360533892,1746853833241,-490.38052756,0.00019997,2]
[360533893,1746853833251,-450.0,0.00019997,2]
[360533894,1746853833260,-400.0,0.00019997,2]
[360533895,1746853833269,-343.83603751,0.00019997,2]
[360533896,1746853833278,-488.37036265,0.00019997,2]
[360533897,1746853833287,-400.0,0.00019997,2]
[360533898,1746853833296,-547.30594541,0.00019997,2]
[360533899,1746853833305,-1141.62,0.00019997,2]
[360533900,1746853833314,-450.0,0.00019997,2]
[360533901,1746853833323,-450.0,0.00019997,2]
[360533902,1746853833333,-450.0,0.00019997,2]
[360533903,1746853833346,-450.0,0.00019997,2]
[360533904,1746853833362,-450.0,0.00019997,2]
[360533905,1746853833371,-400.0,0.00019997,2]
[360533906,1746853833381,-333.74052033,0.00019997,2]
[360533907,1746853833390,-450.0,0.00019997,2]
[360533908,1746853833399,-450.0,0.00019997,2]
[360533909,1746853833409,-400.0,0.00019997,2]
[360533910,1746853833425,-450.0,0.00019997,2]
[360533911,1746853833443,-400.0,0.00019997,2]
[360533912,1746853833452,-7928.82,0.00019997,2]
[360533913,1746853833461,-946.62,0.00019997,2]
[360533914,1746853833471,-450.0,0.00019997,2]
[360533915,1746853833480,-400.0,0.00019997,2]
[360533916,1746853833490,-450.0,0.00019997,2]
[360533917,1746853833499,-400.0,0.00019997,2]
[360533918,1746853833508,-450.0,0.00019997,2]
[360533919,1746853833520,-450.0,0.00019997,2]
[360533920,1746853833529,-450.0,0.00019997,2]
[360533921,1746853833540,-450.0,0.00019997,2]
[360533922,1746853833550,-493.69822098,0.00019997,2]
[360533923,1746853833559,-400.0,0.00019997,2]
[360533924,1746853833569,-450.0,0.00019997,2]
[360533925,1746853833579,-450.0,0.00019997,2]
[360533926,1746853833588,-450.0,0.00019997,2]
[360533927,1746853833598,-451.2,0.00019997,2]
[360533928,1746853833607,-2000.0,0.00019997,2]
[360533929,1746853833617,-400.0,0.00019997,2]
[360533930,1746853833626,-450.0,0.00019997,2]
[360533931,1746853833635,-450.0,0.00019997,2]
[360533932,1746853833644,-539.5,0.00019997,2]
[360533933,1746853833655,-450.0,0.00019997,2]
[360533934,1746853833666,-496.46312375,0.00019997,2]
[360533935,1746853833675,-450.0,0.00019997,2]
[360533936,1746853833685,-400.0,0.00019997,2]
[360533937,1746853833694,-400.0,0.00019997,2]
[360533938,1746853833703,-400.0,0.00019997,2]
[360533939,1746853833714,-548.18,0.00019997,2]
[360533940,1746853833723,-450.0,0.00019997,2]
[360533941,1746853833733,-476.94601029,0.00019997,2]
[360533942,1746853833743,-450.0,0.00019997,2]
[360533943,1746853833752,-400.0,0.00019997,2]
[360533944,1746853833762,-450.0,0.00019997,2]
[360533945,1746853833771,-543.48,0.00019997,2]
[360533946,1746853833781,-450.80909938,0.00019998,2]
[360533947,1746853833790,-500.0,0.00019998,2]
[360533949,1746853833799,-666.0,0.00019998,2]
[360533950,1746853833811,-464.14849923,0.00019998,2]
[360533951,1746853833820,-304.89133957,0.00019998,2]
[360533952,1746853833830,-461.09022792,0.00019998,2]
[360533953,1746853833839,-193.60110548,0.00019998,2]
[360533954,1746853833849,-400.0,0.00019998,2]
[360533955,1746853833859,-266.34,0.00019998,2]
[360533956,1746853833869,-450.0,0.00019998,2]
[360533957,1746853833879,-450.0,0.00019998,2]
[360533958,1746853833888,-450.0,0.00019998,2]
[360533959,1746853833897,-450.0,0.00019998,2]
[360533960,1746853833907,-433.37687411,0.00019998,2]
[360533961,1746853833916,-462.32,0.00019998,2]
[360533962,1746853833925,-450.0,0.00019998,2]
[360533963,1746853833934,-500.0,0.00019998,2]
[360533964,1746853833943,-500.0,0.00019998,2]
[360533965,1746853833952,-500.0,0.00019998,2]
[360533966,1746853833961,-500.0,0.00019998,2]
[360533967,1746853833971,-500.0,0.00019998,2]
[360533968,1746853833981,-500.0,0.00019998,2]
[360533969,1746853833990,-500.0,0.00019998,2]
[360533970,1746853833999,-500.0,0.00019998,2]
[360533971,1746853834008,-500.0,0.00019998,2]
[360533972,1746853834018,-500.0,0.00019998,2]
[360533973,1746853834027,-500.0,0.00019998,2]
[360533974,1746853834036,-500.0,0.00019998,2]
[360533975,1746853834045,-500.0,0.00019998,2]
[360533976,1746853834054,-500.0,0.00019998,2]
[360533977,1746853834063,-500.0,0.00019998,2]
[360533978,1746853834072,-500.0,0.00019998,2]
[360533979,1746853834081,-500.0,0.00019998,2]
[360533980,1746853834092,-574.60538507,0.00019998,2]
[360533981,1746853834104,-500.0,0.00019998,2]
[360533982,1746853834113,-500.0,0.00019998,2]
[360533983,1746853834122,-500.0,0.00019998,2]
[360533984,1746853834131,-375.27551829,0.00019998,2]
[360533985,1746853834141,-500.0,0.00019998,2]
[360533986,1746853834150,-500.0,0.00019998,2]
[360533987,1746853834160,-500.0,0.00019998,2]
[360533988,1746853834169,-500.0,0.00019998,2]
[360533989,1746853834178,-500.0,0.00019998,2]
[360533990,1746853834187,-500.0,0.00019998,2]
[360533991,1746853834196,-500.0,0.00019998,2]
[360533992,1746853834205,-500.0,0.00019998,2]
[360533993,1746853834215,-500.0,0.00019998,2]
[360533994,1746853834224,-500.0,0.00019998,2]
[360533995,1746853834233,-500.0,0.00019998,2]
[360533996,1746853834243,-500.0,0.00019998,2]
[360533997,1746853834252,-500.0,0.00019998,2]
[360533998,1746853834261,-500.0,0.00019998,2]
[360533999,1746853834270,-500.0,0.00019998,2]
[360534000,1746853834279,-500.0,0.00019998,2]
[360534001,1746853834288,-500.0,0.00019998,2]
[360534002,1746853834298,-500.0,0.00019998,2]
[360534003,1746853834307,-500.0,0.00019998,2]
[360534004,1746853834316,-500.0,0.00019998,2]
[360534005,1746853834326,-500.0,0.00019998,2]
[360534006,1746853834335,-500.0,0.00019998,2]
[360534007,1746853834344,-500.0,0.00019998,2]
[360534008,1746853834353,-500.0,0.00019998,2]
[360534009,1746853834362,-500.0,0.00019998,2]
[360534010,1746853834372,-500.0,0.00019998,2]
[360534011,1746853834381,-500.0,0.00019998,2]
[360534012,1746853834390,-500.0,0.00019998,2]
[360534013,1746853834399,-500.0,0.00019998,2]
[360534014,1746853834409,-500.0,0.00019998,2]
[360534015,1746853834418,-500.0,0.00019998,2]
[360534016,1746853834427,-587.52755183,0.00019998,2]
[360534017,1746853834436,-500.0,0.00019998,2]
[360534018,1746853834446,-500.0,0.00019998,2]
[360534019,1746853834455,-500.0,0.00019998,2]
[360534020,1746853834465,-400.0,0.00019998,2]
[360534021,1746853834474,-400.0,0.00019998,2]
[360534022,1746853834484,-450.0,0.00019998,2]
[360534023,1746853834493,-450.0,0.00019998,2]
[360534024,1746853834502,-400.0,0.00019998,2]
[360534025,1746853834512,-378.87596852,0.00019998,2]
[360534026,1746853834521,-450.0,0.00019998,2]
[360534027,1746853834531,-450.0,0.00019998,2]
[360534028,1746853834540,-450.0,0.00019998,2]
[360534029,1746853834549,-450.0,0.00019998,2]
[360534030,1746853834558,-400.0,0.00019998,2]
[360534031,1746853834568,-8.11593863,0.00019998,2]
[360534032,1746853834581,-391.88406137,0.00019998,2]
[360534033,1746853834590,-192.10313718,0.00019998,2]
[360534034,1746853834602,-257.89686282,0.00019998,2]
[360534035,1746853834611,-450.0,0.00019998,2]
[360534036,1746853834621,-400.0,0.00019998,2]
[360534037,1746853834630,-400.0,0.00019998,2]
[360534038,1746853834639,-323.86175105,0.00019998,2]
[360534039,1746853834648,-400.0,0.00019998,2]
[360534040,1746853834658,-180.23673061,0.00019998,2]
[360534041,1746853834667,-450.0,0.00019998,2]
[360534042,1746853834677,-483.55247432,0.00019998,2]
[360534043,1746853834687,-450.0,0.00019998,2]
[360534044,1746853834696,-400.0,0.00019998,2]
[360534045,1746853834705,-400.0,0.00019998,2]
[360534046,1746853834715,-192.67331718,0.00019998,2]
[360534047,1746853834726,-314.50888515,0.00019998,2]
[360534048,1746853834735,-450.0,0.00019998,2]
[360534049,1746853834745,-509.08999189,0.00019998,2]
[360534050,1746853834754,-549.44840244,0.00019998,2]
[360534051,1746853834764,-522.22407403,0.00019998,2]
[360534052,1746853834773,-495.86272215,0.00019998,2]
[360534053,1746853834782,-400.0,0.00019998,2]
[360534054,1746853834791,-189.7276569,0.00019998,2]
[360534055,1746853837888,-719.66245756,0.00019897,2]
[360534056,1746853837898,-450.0,0.00019997,2]
[360534057,1746853837907,-210.2723431,0.00019998,2]
[360534058,1746853837916,-450.0,0.00019998,2]
[360534059,1746853837926,-487.78321652,0.00019998,2]
[360534060,1746853837934,-167.08048749,0.00019998,2]
[360534061,1746853837943,-400.0,0.00019998,2]
[360534062,1746853837954,-542.63436895,0.00019998,2]
[360534063,1746853837963,-196.39408186,0.00019998,2]
[360534064,1746853837972,-236.59,0.00019998,2]
[360534065,1746853837981,-500.0,0.00019998,2]
[360534066,1746853837990,-158.45469972,0.00019998,2]
[360534067,1746853837999,-528.46610258,0.00019998,2]
[360534068,1746853838009,-500.0,0.00019998,2]
[360534069,1746853838018,-189.99,0.00019998,2]
[360534070,1746853838027,-400.0,0.00019998,2]
[360534071,1746853838037,-400.0,0.00019998,2]
[360534072,1746853838046,-500.0,0.00019998,2]
[360534073,1746853838055,-506.63,0.00019998,2]
[360534074,1746853838065,-400.0,0.00019998,2]
[360534075,1746853838074,-250.06072995,0.00019998,2]
[360534076,1746853838082,-500.0,0.00019998,2]
[360534077,1746853838092,-453.35,0.00019998,2]
[360534078,1746853838103,-520.65,0.00019998,2]
[360534079,1746853838112,-400.0,0.00019998,2]
[360534080,1746853838122,-294.83,0.00019998,2]
[360534081,1746853838132,-400.0,0.00019998,2]
[360534082,1746853838141,-400.0,0.00019998,2]
[360534083,1746853838151,-400.0,0.00019998,2]
[360534084,1746853838161,-400.0,0.00019998,2]
[360534085,1746853838176,-400.0,0.00019998,2]
[360534086,1746853838185,-500.0,0.00019998,2]
[360534087,1746853838194,-500.0,0.00019998,2]
[360534088,1746853838203,-400.0,0.00019998,2]
[360534089,1746853838212,-400.0,0.00019998,2]
[360534090,1746853838222,-400.0,0.00019998,2]
[360534091,1746853838232,-400.0,0.00019998,2]
[360534092,1746853838242,-400.0,0.00019998,2]
[360534093,1746853838252,-300.0,0.00019998,2]
[360534094,1746853838261,-1141.62,0.00019998,2]
[360534095,1746853838271,-500.0,0.00019998,2]
[360534096,1746853838280,-527.7,0.00019998,2]
[360534098,1746853838289,-400.0,0.00019998,2]
[360534100,1746853838300,-7928.82,0.00019998,2]
[360534102,1746853838309,-946.62,0.00019998,2]
[360534104,1746853838319,-400.0,0.00019998,2]
[360534106,1746853838328,-400.0,0.00019998,2]
[360534107,1746853838337,-328.26342706,0.00019998,2]
[360534108,1746853838347,-500.0,0.00019998,2]
[360534109,1746853838358,-400.0,0.00019998,2]
[360534110,1746853838369,-539.5,0.00019998,2]
[360534111,1746853838378,-500.0,0.00019998,2]
[360534112,1746853838387,-264.54941112,0.00019998,2]
[360534113,1746853838396,-400.0,0.00019998,2]
[360534114,1746853838408,-400.0,0.00019998,2]
[360534115,1746853838418,-395.26683061,0.00019998,2]
[360534116,1746853838431,-543.48,0.00019998,2]
[360534117,1746853838440,-212.81080939,0.00019999,2]
[360534118,1746853838450,-36470.1359449,0.00019999,2]
[360534119,1746853838624,-153.301173,0.00019999,2]
[360534120,1746853838633,-290.01278292,0.00019999,2]
[360534121,1746853838643,-200.0,0.00019999,2]
[360534122,1746853838652,-371.14,0.00019999,2]
[360534123,1746853838662,-151.0,0.00019999,2]
[360534124,1746853838671,-400.0,0.00019999,2]
[360534125,1746853838680,-400.0,0.00019999,2]
[360534126,1746853838689,-400.0,0.00019999,2]
[360534127,1746853838699,-400.0,0.00019999,2]
[360534128,1746853838708,-400.0,0.00019999,2]
[360534129,1746853838717,-400.0,0.00019999,2]
[360534130,1746853838726,-400.0,0.00019999,2]
[360534131,1746853838736,-400.0,0.00019999,2]
[360534132,1746853838745,-400.0,0.00019999,2]
[360534133,1746853838754,-400.0,0.00019999,2]
[360534134,1746853838764,-400.0,0.00019999,2]
[360534135,1746853838774,-400.0,0.00019999,2]
[360534136,1746853838783,-332.18,0.00019999,2]
[360534137,1746853838792,-200.0,0.00019999,2]
[360534138,1746853838802,-151.0,0.00019999,2]
[360534139,1746853838814,-400.0,0.00019999,2]
[360534140,1746853838823,-400.0,0.00019999,2]
[360534141,1746853838832,-400.0,0.00019999,2]
[360534142,1746853838841,-400.0,0.00019999,2]
[360534143,1746853838851,-400.0,0.00019999,2]
[360534144,1746853838860,-400.0,0.00019999,2]
[360534145,1746853838869,-541.22,0.00019999,2]
[360534146,1746853838879,-226.49,0.00019999,2]
[360534147,1746853838888,-253.10297036,0.00019999,2]
[360534148,1746853838898,-400.0,0.00019999,2]
[360534149,1746853838907,-400.0,0.00019999,2]
[360534150,1746853838917,-400.0,0.00019999,2]
[360534151,1746853838926,-400.0,0.00019999,2]
[360534152,1746853838935,-400.0,0.00019999,2]
[360534153,1746853838944,-400.0,0.00019999,2]
[360534154,1746853838954,-400.0,0.00019999,2]
[360534155,1746853838963,-154.212288,0.00019999,2]
[360534156,1746853838974,-450.0,0.00019999,2]
[360534157,1746853838983,-400.0,0.00019999,2]
[360534158,1746853838992,-174.32864652,0.00019999,2]
[360534159,1746853839001,-151.0,0.00019999,2]
[360534160,1746853839010,-151.0,0.00019999,2]
[360534161,1746853839019,-151.0,0.00019999,2]
[360534162,1746853839028,-200.0,0.00019999,2]
[360534163,1746853839037,-151.0,0.00019999,2]
[360534164,1746853839047,-151.0,0.00019999,2]
[360534165,1746853839056,-400.0,0.00019999,2]
[360534166,1746853839065,-400.0,0.00019999,2]
[360534167,1746853839074,-400.0,0.00019999,2]
[360534168,1746853839084,-400.0,0.00019999,2]
[360534169,1746853839094,-400.0,0.00019999,2]
[360534170,1746853839105,-400.0,0.00019999,2]
[360534171,1746853839115,-400.0,0.00019999,2]
[360534172,1746853839125,-400.0,0.00019999,2]
[360534173,1746853839134,-400.0,0.00019999,2]
[360534174,1746853839143,-400.0,0.00019999,2]
[360534175,1746853839152,-400.0,0.00019999,2]
[360534176,1746853839162,-400.0,0.00019999,2]
[360534177,1746853839171,-400.0,0.00019999,2]
[360534178,1746853839181,-400.0,0.00019999,2]
[360534179,1746853839190,-400.0,0.00019999,2]
[360534180,1746853839199,-400.0,0.00019999,2]
[360534181,1746853839209,-400.0,0.00019999,2]
[360534182,1746853839218,-400.0,0.00019999,2]
[360534183,1746853839227,-400.0,0.00019999,2]
[360534184,1746853839236,-400.0,0.00019999,2]
[360534185,1746853839246,-335.84000001,0.00019999,2]
[360534186,1746853839255,-151.0,0.00019999,2]
[360534187,1746853839263,-155.468621,0.00019999,2]
[360534188,1746853839273,-400.0,0.00019999,2]
[360534189,1746853839282,-400.0,0.00019999,2]
[360534190,1746853839291,-400.0,0.00019999,2]
[360534191,1746853839301,-400.0,0.00019999,2]
[360534192,1746853839310,-400.0,0.00019999,2]
[360534193,1746853839319,-400.0,0.00019999,2]
[360534194,1746853839328,-400.0,0.00019999,2]
[360534195,1746853839337,-400.0,0.00019999,2]
[360534196,1746853839346,-400.0,0.00019999,2]
[360534197,1746853839356,-528.20009764,0.00019999,2]
[360534198,1746853839365,-400.0,0.00019999,2]
[360534199,1746853839374,-400.0,0.00019999,2]
[360534200,1746853839383,-400.0,0.00019999,2]
[360534201,1746853839393,-400.0,0.00019999,2]
[360534202,1746853839403,-400.0,0.00019999,2]
[360534203,1746853839412,-400.0,0.00019999,2]
[360534204,1746853839421,-400.0,0.00019999,2]
[360534205,1746853839431,-400.0,0.00019999,2]
[360534206,1746853839440,-157.16,0.00019999,2]
[360534207,1746853839449,-400.0,0.00019999,2]
[360534208,1746853839460,-150.0,0.00019999,2]
[360534209,1746853839469,-232.47139506,0.00019999,2]
[360534210,1746853839479,-400.0,0.00019999,2]
[360534211,1746853839488,-400.0,0.00019999,2]
[360534212,1746853839497,-400.0,0.00019999,2]
[360534213,1746853839507,-400.0,0.00019999,2]
[360534214,1746853839516,-513.66,0.00019999,2]
[360534215,1746853839525,-400.0,0.00019999,2]
[360534216,1746853839534,-400.0,0.00019999,2]
[360534217,1746853839543,-400.0,0.00019999,2]
[360534218,1746853839555,-400.0,0.00019999,2]
[360534219,1746853839564,-400.0,0.00019999,2]
[360534220,1746853839573,-400.0,0.00019999,2]
[360534221,1746853839583,-400.0,0.00019999,2]
[360534222,1746853839592,-232.98000001,0.00019999,2]
[360534223,1746853839601,-208.50626883,0.00019999,2]
[360534224,1746853839610,-309.91223658,0.00019999,2]
[360534225,1746853839619,-400.0,0.00019999,2]
[360534226,1746853839629,-400.0,0.00019999,2]
[360534227,1746853839638,-400.0,0.00019999,2]
[360534228,1746853839647,-400.0,0.00019999,2]
[360534229,1746853839656,-400.0,0.00019999,2]
[360534230,1746853839665,-400.0,0.00019999,2]
[360534231,1746853839675,-400.0,0.00019999,2]
[360534232,1746853839686,-400.0,0.00019999,2]
[360534233,1746853839696,-400.0,0.00019999,2]
[360534234,1746853839706,-400.0,0.00019999,2]
[360534235,1746853839715,-400.0,0.00019999,2]
[360534236,1746853839724,-377.89661196,0.00019999,2]
[360534237,1746853839734,-400.0,0.00019999,2]
[360534238,1746853839743,-400.0,0.00019999,2]
[360534239,1746853839752,-400.0,0.00019999,2]
[360534240,1746853839761,-523.23548474,0.00019999,2]
[360534241,1746853839771,-400.0,0.00019999,2]
[360534242,1746853839781,-400.0,0.00019999,2]
[360534243,1746853839791,-400.0,0.00019999,2]
[360534244,1746853839800,-400.0,0.00019999,2]
[360534245,1746853839814,-400.0,0.00019999,2]
[360534246,1746853839824,-400.0,0.00019999,2]
[360534247,1746853839833,-400.0,0.00019999,2]
[360534248,1746853839842,-400.0,0.00019999,2]
[360534249,1746853839852,-400.0,0.00019999,2]
[360534250,1746853839862,-400.0,0.00019999,2]
[360534251,1746853839871,-400.0,0.00019999,2]
[360534253,1746853839881,-400.0,0.00019999,2]
[360534254,1746853839890,-400.0,0.00019999,2]
[360534255,1746853839899,-400.0,0.00019999,2]
[360534256,1746853839910,-477.52,0.00019999,2]
[360534257,1746853839919,-400.0,0.00019999,2]
[360534258,1746853839931,-400.0,0.00019999,2]